[Event "Chpt France Universitaire 2024"]
[Site "Bastia, France"]
[Date "2024.04.06"]
[Round "3.10"]
[White "Paris, Romain"]
[Black "Roux, Baptiste"]
[Result "0-1"]
[TimeControl "15min+5s"]
[WhiteElo "1898"]
[BlackElo "2361"]

1. d4 {[%clk 00:15:05]} {[%emt 00:00:01]} d5 {[%clk 00:15:05]} {[%emt
00:00:02]} 2. Nf3 {[%clk 00:15:05]} {[%emt 00:00:02]} Nf6 {[%clk 00:15:05]}
{[%emt 00:00:03]} 3. c4 {[%clk 00:15:05]} {[%emt 00:00:01]} c6 {[%clk
00:15:01]} {[%emt 00:00:09]} 4. Nc3 {[%clk 00:15:05]} {[%emt 00:00:01]} e6
{[%clk 00:15:01]} {[%emt 00:00:01]} 5. Bf4 {[%clk 00:15:05]} {[%emt 00:00:03]}
Nbd7 {[%clk 00:14:15]} {[%emt 00:00:51]} 6. e3 {[%clk 00:15:05]} {[%emt
00:00:03]} Be7 {[%clk 00:14:15]} {[%emt 00:00:02]} 7. Bd3 {[%clk 00:15:05]}
{[%emt 00:00:03]} O-O {[%clk 00:14:10]} {[%emt 00:00:10]} 8. O-O {[%clk
00:15:05]} {[%emt 00:00:03]} dxc4 {[%clk 00:14:01]} {[%emt 00:00:14]} 9. Bxc4
{[%clk 00:15:05]} {[%emt 00:00:02]} b5 {[%clk 00:13:52]} {[%emt 00:00:14]} 10.
Bd3 {[%clk 00:15:01]} {[%emt 00:00:08]} Bb7 {[%clk 00:13:02]} {[%emt 00:00:56]}
11. Rc1 {[%clk 00:14:41]} {[%emt 00:00:26]} a6 {[%clk 00:12:18]} {[%emt
00:00:49]} 12. Qe2 {[%clk 00:14:14]} {[%emt 00:00:32]} c5 {[%clk 00:12:06]}
{[%emt 00:00:18]} 13. dxc5 {[%clk 00:13:51]} {[%emt 00:00:27]} Nxc5 {[%clk
00:12:04]} {[%emt 00:00:07]} 14. Bb1 {[%clk 00:13:49]} {[%emt 00:00:07]} Rc8
{[%clk 00:11:48]} {[%emt 00:00:16]} 15. Rfd1 {[%clk 00:13:49]} {[%emt
00:00:01]} Qb6 {[%clk 00:11:53]} {[%emt 00:00:02]} 16. h3 {[%clk 00:13:10]}
{[%emt 00:00:44]} b4 {[%clk 00:11:53]} {[%emt 00:00:06]} 17. Nd4 {[%clk
00:12:06]} {[%emt 00:01:09]} bxc3 {[%clk 00:11:46]} {[%emt 00:00:11]} 18. Rxc3
{[%clk 00:12:06]} Rfd8 {[%clk 00:11:25]} {[%emt 00:00:25]} 19. Rdc1 {[%clk
00:12:06]} {[%emt 00:00:02]} Nce4 {[%clk 00:11:05]} {[%emt 00:00:25]} 20. Rc7
{[%clk 00:11:30]} {[%emt 00:00:42]} Bc5 {[%clk 00:10:10]} {[%emt 00:00:59]} 21.
Rxc8 {[%clk 00:11:21]} {[%emt 00:00:14]} Rxc8 {[%clk 00:09:53]} {[%emt
00:00:22]} 22. f3 {[%clk 00:11:15]} {[%emt 00:00:11]} Bxd4 {[%clk 00:09:47]}
{[%emt 00:00:12]} 23. Rxc8+ {[%clk 00:11:15]} {[%emt 00:00:01]} Bxc8 {[%clk
00:09:47]} {[%emt 00:00:01]} 24. fxe4 {[%clk 00:11:13]} {[%emt 00:00:07]} Bxb2
{[%clk 00:09:18]} {[%emt 00:00:34]} 25. Bc2 {[%clk 00:10:21]} {[%emt 00:00:57]}
e5 {[%clk 00:09:11]} {[%emt 00:00:11]} 26. Bg3 {[%clk 00:09:54]} {[%emt
00:00:32]} Be6 {[%clk 00:08:48]} {[%emt 00:00:29]} 27. Kh2 {[%clk 00:09:46]}
{[%emt 00:00:13]} Nd7 {[%clk 00:07:13]} {[%emt 00:01:39]} 28. Qd2 {[%clk
00:09:07]} {[%emt 00:00:43]} Ba3 {[%clk 00:06:36]} {[%emt 00:00:42]} 29. Be1
{[%clk 00:09:07]} {[%emt 00:00:04]} Bc5 {[%clk 00:06:25]} {[%emt 00:00:16]} 30.
Ba4 {[%clk 00:08:59]} {[%emt 00:00:13]} Bxe3 {[%clk 00:06:10]} {[%emt
00:00:20]} 31. Qc3 {[%clk 00:08:38]} {[%emt 00:00:27]} Bg1+ {[%clk 00:05:44]}
{[%emt 00:00:31]} 32. Kh1 {[%clk 00:08:30]} {[%emt 00:00:13]} Bd4 {[%clk
00:05:44]} {[%emt 00:00:02]} 33. Qc8+ {[%clk 00:08:22]} {[%emt 00:00:13]} Nf8
{[%clk 00:05:44]} {[%emt 00:00:02]} 34. Qe8 {[%clk 00:08:18]} {[%emt 00:00:01]}
Qb1 {[%clk 00:05:43]} {[%emt 00:00:13]} 35. Kh2 {[%clk 00:08:06]} {[%emt
00:00:17]} Qxe1 {[%clk 00:05:43]} {[%emt 00:00:03]} 36. Qc6 {[%clk 00:08:05]}
{[%emt 00:00:06]} Bg1+ {[%clk 00:05:43]} {[%emt 00:00:02]} 0-1

[Event "Chpt France Universitaire 2024"]
[Site "Bastia, France"]
[Date "2024.04.06"]
[Round "3.11"]
[White "Djidjeli, Sarah"]
[Black "Defromont, Benjamin"]
[Result "1-0"]
[TimeControl "15min+5s"]
[WhiteElo "2080"]
[BlackElo "2393"]

1. e4 {[%clk 00:15:05]} {[%emt 00:06:07]} e5 {[%clk 00:15:05]} {[%emt
00:00:04]} 2. Nf3 {[%clk 00:15:05]} Nc6 {[%emt 00:00:03]} 3. Bb5 a6 {[%clk
00:15:05]} {[%emt 00:00:02]} 4. Ba4 {[%clk 00:15:05]} Nf6 {[%clk 00:15:05]}
{[%emt 00:00:03]} 5. O-O {[%clk 00:15:05]} {[%emt 00:00:01]} Be7 {[%clk
00:15:05]} {[%emt 00:00:02]} 6. d3 {[%clk 00:15:05]} {[%emt 00:00:01]} b5
{[%clk 00:15:04]} {[%emt 00:00:07]} 7. Bb3 {[%clk 00:15:05]} d6 {[%clk
00:15:04]} {[%emt 00:00:01]} 8. a4 {[%clk 00:15:05]} {[%emt 00:00:02]} b4
{[%clk 00:14:14]} {[%emt 00:00:55]} 9. a5 {[%clk 00:15:01]} {[%emt 00:00:10]}
O-O {[%clk 00:14:00]} {[%emt 00:00:18]} 10. Re1 {[%clk 00:13:38]} {[%emt
00:01:28]} Rb8 {[%clk 00:14:00]} {[%emt 00:00:01]} 11. Bc4 {[%clk 00:12:52]}
{[%emt 00:00:52]} h6 {[%clk 00:07:25]} {[%emt 00:06:40]} 12. Nbd2 {[%clk
00:12:16]} {[%emt 00:00:41]} Re8 {[%clk 00:07:25]} {[%emt 00:00:01]} 13. Nf1
{[%clk 00:12:13]} {[%emt 00:00:07]} Bf8 {[%clk 00:07:25]} {[%emt 00:00:01]} 14.
Ne3 {[%clk 00:12:08]} {[%emt 00:00:10]} Nd4 {[%clk 00:06:31]} {[%emt 00:00:58]}
15. c3 {[%clk 00:10:59]} {[%emt 00:01:14]} bxc3 {[%clk 00:06:18]} {[%emt
00:00:18]} 16. bxc3 {[%clk 00:10:59]} Nxf3+ {[%clk 00:06:18]} {[%emt 00:00:05]}
17. Qxf3 {[%clk 00:10:59]} c6 {[%clk 00:06:11]} {[%emt 00:00:13]} 18. h3 {[%clk
00:08:31]} {[%emt 00:02:33]} g6 {[%clk 00:05:35]} {[%emt 00:00:41]} 19. Ng4
{[%clk 00:08:05]} {[%emt 00:00:30]} Bxg4 {[%clk 00:05:21]} {[%emt 00:00:20]} 20.
hxg4 {[%clk 00:08:05]} {[%emt 00:00:04]} Ra8 {[%clk 00:04:53]} {[%emt
00:00:33]} 21. g5 {[%clk 00:07:51]} {[%emt 00:00:19]} hxg5 {[%clk 00:04:53]}
{[%emt 00:00:01]} 22. Bxg5 {[%clk 00:07:51]} {[%emt 00:00:01]} Bg7 {[%clk
00:04:53]} 23. d4 {[%clk 00:07:20]} {[%emt 00:00:36]} exd4 {[%clk 00:04:09]}
{[%emt 00:00:50]} 24. cxd4 {[%clk 00:07:17]} {[%emt 00:00:07]} d5 {[%clk
00:04:09]} {[%emt 00:00:01]} 25. exd5 {[%clk 00:06:57]} {[%emt 00:00:26]} Rxe1+
{[%clk 00:04:09]} {[%emt 00:00:01]} 26. Rxe1 {[%clk 00:06:57]} cxd5 {[%clk
00:04:09]} {[%emt 00:00:03]} 27. Bxf6 {[%clk 00:05:35]} {[%emt 00:01:27]} Qxf6
{[%clk 00:04:09]} {[%emt 00:00:01]} 28. Bxd5 {[%clk 00:04:52]} {[%emt
00:00:46]} Rd8 {[%clk 00:04:09]} {[%emt 00:00:02]} 29. Qb3 {[%clk 00:04:52]}
Qf5 {[%clk 00:04:00]} {[%emt 00:00:15]} 30. Be4 {[%clk 00:04:29]} {[%emt
00:00:28]} Qxa5 {[%clk 00:04:00]} {[%emt 00:00:04]} 31. Rd1 {[%clk 00:04:24]}
{[%emt 00:00:09]} Bxd4 {[%clk 00:03:57]} {[%emt 00:00:08]} 32. Bxg6 {[%clk
00:03:05]} {[%emt 00:01:23]} Bxf2+ {[%clk 00:03:57]} {[%emt 00:00:02]} 33. Kxf2
{[%clk 00:03:05]} Qc5+ {[%clk 00:03:57]} {[%emt 00:00:05]} 34. Kf3 {[%clk
00:02:29]} {[%emt 00:00:40]} Qc6+ {[%clk 00:03:47]} {[%emt 00:00:16]} 35. Be4
{[%clk 00:02:29]} Qf6+ {[%clk 00:03:47]} {[%emt 00:00:03]} 36. Ke2 {[%clk
00:02:29]} {[%emt 00:00:02]} Re8 {[%clk 00:03:18]} {[%emt 00:00:36]} 37. Qg3+
{[%clk 00:02:22]} {[%emt 00:00:11]} Kf8 {[%clk 00:03:18]} {[%emt 00:00:05]} 38.
Qa3+ {[%clk 00:02:10]} {[%emt 00:00:17]} Kg8 {[%clk 00:02:59]} {[%emt
00:00:24]} 39. Qe3 {[%clk 00:01:20]} {[%emt 00:00:56]} Qe5 {[%clk 00:02:39]}
{[%emt 00:00:25]} 40. Rd4 {[%clk 00:01:14]} {[%emt 00:00:10]} Kg7 {[%clk
00:02:39]} {[%emt 00:00:06]} 41. Kf1 {[%clk 00:01:02]} {[%emt 00:00:15]} a5
{[%clk 00:01:41]} {[%emt 00:01:06]} 42. Kf2 {[%clk 00:00:52]} {[%emt 00:00:14]}
Qf6+ {[%clk 00:01:30]} {[%emt 00:00:17]} 43. Kg1 {[%clk 00:00:40]} {[%emt
00:00:16]} Re5 {[%clk 00:01:30]} {[%emt 00:00:06]} 44. Rd5 {[%clk 00:00:36]}
{[%emt 00:00:08]} Rxd5 {[%clk 00:01:05]} 45. Bxd5 {[%clk 00:00:36]} a4 {[%clk
00:01:05]} {[%emt 00:00:04]} 46. Qg3+ {[%clk 00:00:36]} {[%emt 00:00:02]} Kf8
{[%clk 00:01:05]} {[%emt 00:00:03]} 47. Qa3+ {[%clk 00:00:36]} {[%emt
00:00:03]} Kg7 {[%clk 00:00:55]} {[%emt 00:00:16]} 48. Qxa4 {[%clk 00:00:36]}
{[%emt 00:00:01]} Qb6+ {[%clk 00:00:55]} {[%emt 00:00:01]} 49. Kf1 {[%clk
00:00:27]} {[%emt 00:00:11]} Qb1+ {[%clk 00:00:55]} {[%emt 00:00:06]} 50. Kf2
{[%clk 00:00:27]} {[%emt 00:00:03]} Qb2+ {[%clk 00:00:55]} {[%emt 00:00:03]} 51.
Kf3 {[%clk 00:00:21]} {[%emt 00:00:09]} Qf6+ {[%clk 00:00:43]} {[%emt
00:00:19]} 52. Qf4 {[%clk 00:00:21]} {[%emt 00:00:02]} Qc3+ {[%clk 00:00:43]}
{[%emt 00:00:04]} 53. Kg4 {[%clk 00:00:21]} {[%emt 00:00:01]} f6 {[%clk
00:00:38]} {[%emt 00:00:11]} 54. Qe4 {[%clk 00:00:19]} {[%emt 00:00:05]} Qc7
{[%clk 00:00:11]} {[%emt 00:00:34]} 55. Qe6 {[%clk 00:00:16]} {[%emt 00:00:06]}
Qd8 {[%clk 00:00:07]} {[%emt 00:00:11]} 56. Qf7+ {[%clk 00:00:16]} {[%emt
00:00:03]} Kh6 {[%clk 00:00:07]} 57. Kf5 {[%clk 00:00:12]} {[%emt 00:00:09]}
Qc8+ {[%clk 00:00:07]} 58. Qe6 {[%clk 00:00:12]} Qc2+ {[%clk 00:00:07]} {[%emt
00:00:03]} 59. Kxf6 {[%clk 00:00:12]} {[%emt 00:00:01]} Qg6+ {[%clk 00:00:07]}
{[%emt 00:00:05]} 60. Ke7 {[%clk 00:00:12]} Qxe6+ {[%clk 00:00:07]} {[%emt
00:00:04]} 61. Bxe6 {[%clk 00:00:12]} Kg5 {[%clk 00:00:07]} 62. g4 {[%clk
00:00:12]} {[%emt 00:00:02]} Kg6 {[%clk 00:00:07]} {[%emt 00:00:01]} 63. Kd6
{[%clk 00:00:12]} {[%emt 00:00:01]} Kg5 {[%clk 00:00:07]} 64. Ke5 {[%clk
00:00:12]} {[%emt 00:00:02]} Kg6 {[%clk 00:00:07]} 65. Kf4 {[%clk 00:00:12]}
Kf6 {[%clk 00:00:07]} {[%emt 00:00:01]} 66. Bd5 {[%clk 00:00:12]} {[%emt
00:00:01]} Kg6 {[%clk 00:00:07]} 67. Be4+ {[%clk 00:00:12]} Kf6 {[%clk
00:00:07]} 68. g5+ {[%clk 00:00:12]} Kg7 {[%emt 00:00:01]} 69. Kf5 Kf7 {[%clk
00:00:07]} 70. Bd5+ {[%clk 00:00:12]} {[%emt 00:00:01]} Kg7 {[%clk 00:00:07]}
71. Bc4 {[%clk 00:00:12]} {[%emt 00:00:03]} Kf8 {[%clk 00:00:07]} {[%emt
00:00:01]} 72. Kg6 {[%clk 00:00:12]} Ke7 {[%clk 00:00:07]} 73. Kh7 {[%clk
00:00:12]} 1-0

[Event "Chpt France Universitaire 2024"]
[Site "Bastia, France"]
[Date "2024.04.06"]
[Round "3.12"]
[White "Gryshko, Vitalii"]
[Black "Coussy, Tyffanie"]
[Result "1-0"]
[TimeControl "15min+5s"]
[WhiteElo "2288"]
[BlackElo "1763"]

1. Nf3 {[%clk 00:15:05]} c5 {[%clk 00:15:05]} {[%emt 00:00:02]} 2. e4 {[%clk
00:15:05]} {[%emt 00:00:02]} Nc6 {[%clk 00:15:05]} {[%emt 00:00:01]} 3. d4
{[%clk 00:15:05]} {[%emt 00:00:01]} cxd4 {[%clk 00:15:05]} {[%emt 00:00:01]} 4.
Nxd4 {[%clk 00:15:05]} {[%emt 00:00:01]} g6 {[%clk 00:15:05]} 5. Nc3 {[%clk
00:14:58]} {[%emt 00:00:14]} Bg7 {[%clk 00:15:05]} {[%emt 00:00:01]} 6. Be3
{[%clk 00:14:58]} Nf6 {[%clk 00:15:05]} {[%emt 00:00:01]} 7. Bc4 {[%clk
00:14:48]} {[%emt 00:00:14]} O-O {[%clk 00:15:05]} {[%emt 00:00:04]} 8. O-O
{[%clk 00:14:48]} {[%emt 00:00:02]} d6 {[%clk 00:14:35]} {[%emt 00:00:36]} 9.
f3 {[%clk 00:14:48]} {[%emt 00:00:05]} Qb6 {[%clk 00:13:22]} {[%emt 00:01:18]}
10. a3 {[%clk 00:12:11]} {[%emt 00:02:42]} Nxe4 {[%clk 00:11:21]} {[%emt
00:02:06]} 11. Nd5 {[%clk 00:11:57]} {[%emt 00:00:18]} Qc5 {[%clk 00:10:12]}
{[%emt 00:01:14]} 12. Nxc6 {[%clk 00:11:57]} {[%emt 00:00:02]} Qxc4 {[%clk
00:09:09]} {[%emt 00:01:09]} 13. Ncxe7+ {[%clk 00:11:35]} {[%emt 00:00:26]} Kh8
{[%clk 00:09:09]} {[%emt 00:00:05]} 14. b3 {[%clk 00:11:35]} {[%emt 00:00:04]}
Qb5 {[%clk 00:08:14]} {[%emt 00:00:55]} 15. fxe4 {[%clk 00:11:35]} {[%emt
00:00:09]} Qd7 {[%clk 00:07:15]} {[%emt 00:01:05]} 16. Bd4 {[%clk 00:11:35]} f6
{[%clk 00:06:35]} {[%emt 00:00:45]} 17. Qf3 {[%clk 00:10:52]} {[%emt 00:00:48]}
b6 {[%clk 00:05:47]} {[%emt 00:00:54]} 18. Qc3 {[%clk 00:10:39]} {[%emt
00:00:18]} Ba6 {[%clk 00:04:41]} {[%emt 00:01:11]} 19. Bxf6 {[%clk 00:10:39]}
{[%emt 00:00:04]} Bxf6 {[%clk 00:04:35]} {[%emt 00:00:11]} 20. Rxf6 {[%clk
00:10:39]} {[%emt 00:00:02]} Kg7 {[%clk 00:04:16]} {[%emt 00:00:25]} 21. Rxg6+
{[%clk 00:10:39]} {[%emt 00:00:04]} 1-0

[Event "Chpt France Universitaire 2024"]
[Site "Bastia, France"]
[Date "2024.04.06"]
[Round "4.1"]
[White "Cahen, Alexis"]
[Black "Rakotomaharo, Fy Antenaina"]
[Result "0-1"]
[TimeControl "15min+5s"]
[WhiteElo "2060"]
[BlackElo "2448"]

1. e4 {[%clk 00:15:05]} {[%emt 00:00:01]} c5 {[%clk 00:15:05]} {[%emt
00:00:02]} 2. Ne2 {[%clk 00:15:05]} {[%emt 00:00:04]} e6 {[%clk 00:15:05]}
{[%emt 00:00:04]} 3. c4 {[%clk 00:15:05]} {[%emt 00:00:02]} Nc6 {[%clk
00:15:05]} {[%emt 00:00:07]} 4. Nbc3 {[%clk 00:15:00]} {[%emt 00:00:10]} Nf6
{[%clk 00:15:04]} {[%emt 00:00:07]} 5. d3 {[%clk 00:13:43]} {[%emt 00:01:21]}
d5 {[%clk 00:14:34]} {[%emt 00:00:35]} 6. Bg5 {[%clk 00:13:19]} {[%emt
00:00:30]} d4 {[%clk 00:14:28]} {[%emt 00:00:12]} 7. Nb1 {[%clk 00:13:03]}
{[%emt 00:00:21]} Qb6 {[%clk 00:14:05]} {[%emt 00:00:28]} 8. Na3 {[%clk
00:12:07]} {[%emt 00:01:00]} Be7 {[%clk 00:13:13]} {[%emt 00:00:57]} 9. Qb3
{[%clk 00:09:46]} {[%emt 00:02:26]} Qd8 {[%clk 00:12:29]} {[%emt 00:00:49]} 10.
g3 {[%clk 00:09:26]} {[%emt 00:00:25]} Nxe4 {[%clk 00:12:18]} {[%emt 00:00:16]}
11. dxe4 {[%clk 00:07:41]} {[%emt 00:01:51]} Bxg5 {[%clk 00:12:18]} {[%emt
00:00:02]} 12. f4 {[%clk 00:07:12]} {[%emt 00:00:34]} Be7 {[%clk 00:12:18]}
{[%emt 00:00:05]} 13. Bg2 {[%clk 00:06:40]} {[%emt 00:00:37]} O-O {[%clk
00:12:09]} {[%emt 00:00:14]} 14. O-O {[%clk 00:06:31]} {[%emt 00:00:14]} e5
{[%clk 00:12:09]} {[%emt 00:00:03]} 15. Rad1 {[%clk 00:06:09]} {[%emt
00:00:27]} Qb6 {[%clk 00:09:55]} {[%emt 00:02:19]} 16. Qc2 {[%clk 00:05:30]}
{[%emt 00:00:44]} Bg4 {[%clk 00:08:44]} {[%emt 00:01:15]} 17. Bf3 {[%clk
00:05:20]} {[%emt 00:00:15]} Nb4 {[%clk 00:08:29]} {[%emt 00:00:20]} 18. Qb1
{[%clk 00:04:26]} {[%emt 00:01:00]} Bh3 {[%clk 00:07:51]} {[%emt 00:00:43]} 19.
Bg2 {[%clk 00:04:16]} {[%emt 00:00:15]} Bxg2 {[%clk 00:07:45]} {[%emt
00:00:11]} 20. Kxg2 {[%clk 00:04:16]} {[%emt 00:00:02]} f5 {[%clk 00:07:38]}
{[%emt 00:00:13]} 21. fxe5 {[%clk 00:03:42]} {[%emt 00:00:38]} Qc6 {[%clk
00:07:38]} 22. Nf4 {[%clk 00:02:08]} {[%emt 00:01:41]} fxe4 {[%clk 00:07:38]}
{[%emt 00:00:02]} 23. Nc2 {[%clk 00:01:35]} {[%emt 00:00:38]} e3+ {[%clk
00:02:41]} {[%emt 00:05:02]} 24. Kg1 {[%clk 00:01:13]} {[%emt 00:00:27]} e2
{[%clk 00:01:35]} {[%emt 00:01:11]} 25. Nxe2 {[%clk 00:01:05]} {[%emt
00:00:13]} Qe4 {[%clk 00:01:17]} {[%emt 00:00:24]} 26. Nexd4 {[%clk 00:00:26]}
{[%emt 00:00:44]} cxd4 {[%clk 00:01:06]} {[%emt 00:00:16]} 27. Nxb4 {[%clk
00:00:09]} {[%emt 00:00:22]} Qe3+ {[%clk 00:01:06]} {[%emt 00:00:02]} 28. Kg2
{[%emt 00:00:06]} Bxb4 {[%clk 00:00:51]} {[%emt 00:00:19]} 29. Qd3 {[%clk
00:00:07]} {[%emt 00:00:07]} Qxe5 {[%emt 00:00:10]} 30. a3 Bd6 {[%clk
00:00:40]} {[%emt 00:00:10]} 31. Rde1 {[%clk 00:00:07]} {[%emt 00:00:02]} Qc5
{[%clk 00:00:38]} {[%emt 00:00:07]} 32. b4 {[%clk 00:00:07]} {[%emt 00:00:05]}
Qc6+ {[%clk 00:00:38]} {[%emt 00:00:02]} 33. Kg1 {[%clk 00:00:07]} Rxf1+ {[%clk
00:00:30]} {[%emt 00:00:12]} 34. Rxf1 {[%clk 00:00:07]} {[%emt 00:00:01]} a5
{[%clk 00:00:28]} {[%emt 00:00:07]} 35. Qxd4 {[%clk 00:00:06]} {[%emt
00:00:06]} axb4 {[%clk 00:00:25]} {[%emt 00:00:07]} 36. axb4 {[%clk 00:00:06]}
{[%emt 00:00:03]} Bxb4 {[%clk 00:00:25]} {[%emt 00:00:04]} 37. Qd5+ {[%clk
00:00:06]} {[%emt 00:00:05]} Qxd5 {[%clk 00:00:25]} {[%emt 00:00:02]} 38. cxd5
{[%clk 00:00:06]} {[%emt 00:00:01]} Ra2 {[%clk 00:00:24]} {[%emt 00:00:05]} 39.
Rb1 {[%clk 00:00:06]} {[%emt 00:00:03]} Bc5+ {[%clk 00:00:24]} {[%emt
00:00:01]} 40. Kf1 {[%clk 00:00:06]} {[%emt 00:00:02]} b6 {[%clk 00:00:24]}
{[%emt 00:00:02]} 41. d6 {[%clk 00:00:06]} {[%emt 00:00:02]} Rd2 {[%clk
00:00:24]} {[%emt 00:00:02]} 0-1

[Event "Chpt France Universitaire 2024"]
[Site "Bastia, France"]
[Date "2024.04.06"]
[Round "4.2"]
[White "Gatineau, Yovann"]
[Black "Budak, Rewi"]
[Result "1-0"]
[TimeControl "15min+5s"]
[WhiteElo "2408"]
[BlackElo "2112"]

1. d4 {[%clk 00:15:05]} c5 {[%clk 00:15:05]} {[%emt 00:00:04]} 2. d5 {[%clk
00:15:05]} {[%emt 00:00:01]} e5 {[%clk 00:15:05]} {[%emt 00:00:01]} 3. c4
{[%clk 00:15:05]} d6 {[%clk 00:15:05]} {[%emt 00:00:01]} 4. Nc3 {[%clk
00:15:05]} g6 {[%clk 00:15:01]} {[%emt 00:00:10]} 5. e4 {[%clk 00:15:05]}
{[%emt 00:00:05]} Bg7 {[%clk 00:14:58]} {[%emt 00:00:08]} 6. h3 {[%clk
00:15:04]} {[%emt 00:00:06]} h5 {[%clk 00:14:31]} {[%emt 00:00:33]} 7. Nf3
{[%clk 00:15:00]} {[%emt 00:00:09]} h4 {[%clk 00:13:51]} {[%emt 00:00:45]} 8.
Bg5 {[%clk 00:14:24]} {[%emt 00:00:40]} Bf6 {[%clk 00:13:51]} 9. Be3 {[%clk
00:14:24]} Na6 {[%clk 00:13:23]} {[%emt 00:00:34]} 10. Bd3 {[%clk 00:14:04]}
{[%emt 00:00:25]} Ne7 {[%clk 00:13:09]} {[%emt 00:00:19]} 11. a3 {[%clk
00:14:04]} {[%emt 00:00:05]} Rg8 {[%clk 00:11:25]} {[%emt 00:01:49]} 12. Qd2
{[%clk 00:13:55]} {[%emt 00:00:14]} g5 {[%clk 00:11:24]} {[%emt 00:00:06]} 13.
Nxg5 {[%clk 00:13:28]} {[%emt 00:00:31]} Ng6 {[%clk 00:11:21]} {[%emt
00:00:08]} 14. g3 {[%clk 00:13:07]} {[%emt 00:00:26]} Nc7 {[%clk 00:10:26]}
{[%emt 00:01:00]} 15. O-O-O {[%clk 00:12:58]} {[%emt 00:00:14]} Bd7 {[%clk
00:10:03]} {[%emt 00:00:28]} 16. Rdg1 {[%clk 00:11:31]} {[%emt 00:01:31]} a6
{[%clk 00:09:15]} {[%emt 00:00:54]} 17. gxh4 {[%clk 00:11:19]} {[%emt
00:00:17]} Rh8 {[%clk 00:07:15]} {[%emt 00:02:06]} 18. Rg3 {[%clk 00:08:36]}
{[%emt 00:02:47]} Qe7 {[%clk 00:04:32]} {[%emt 00:02:48]} 19. Rhg1 {[%clk
00:08:21]} {[%emt 00:00:20]} O-O-O {[%clk 00:02:24]} {[%emt 00:02:14]} 20. Ne2
{[%clk 00:06:50]} {[%emt 00:01:35]} Rxh4 {[%clk 00:02:09]} {[%emt 00:00:21]} 21.
Nxf7 {[%clk 00:05:00]} {[%emt 00:01:55]} Qxf7 {[%clk 00:02:09]} {[%emt
00:00:03]} 22. Rxg6 {[%clk 00:05:00]} {[%emt 00:00:01]} Rxh3 {[%clk 00:01:57]}
{[%emt 00:00:17]} 23. b4 {[%clk 00:03:58]} {[%emt 00:01:07]} b6 {[%clk
00:00:28]} {[%emt 00:01:34]} 24. bxc5 {[%clk 00:03:46]} {[%emt 00:00:17]} dxc5
{[%clk 00:00:28]} {[%emt 00:00:02]} 25. Qb2 {[%clk 00:03:40]} {[%emt 00:00:11]}
Na8 {[%clk 00:00:09]} {[%emt 00:00:25]} 26. R6g3 {[%clk 00:01:34]} {[%emt
00:02:10]} Rdh8 {[%clk 00:00:09]} {[%emt 00:00:02]} 27. Kb1 {[%clk 00:01:08]}
{[%emt 00:00:32]} Rxg3 {[%clk 00:00:09]} {[%emt 00:00:02]} 28. Nxg3 {[%clk
00:01:08]} {[%emt 00:00:02]} Rg8 {[%clk 00:00:09]} {[%emt 00:00:02]} 29. Ka2
{[%clk 00:00:48]} {[%emt 00:00:25]} Qe8 {[%clk 00:00:09]} {[%emt 00:00:03]} 30.
Rh1 {[%clk 00:00:34]} {[%emt 00:00:19]} Bg5 {[%clk 00:00:09]} {[%emt 00:00:03]}
31. Qd2 {[%clk 00:00:21]} {[%emt 00:00:17]} Bxe3 {[%clk 00:00:08]} {[%emt
00:00:06]} 32. Qxe3 {[%clk 00:00:21]} Qf7 {[%clk 00:00:08]} {[%emt 00:00:05]}
33. Rh5 {[%clk 00:00:18]} {[%emt 00:00:08]} Qf6 {[%clk 00:00:08]} {[%emt
00:00:06]} 34. Rh6 {[%clk 00:00:18]} {[%emt 00:00:05]} Qf7 {[%clk 00:00:08]}
{[%emt 00:00:04]} 35. Nf5 {[%clk 00:00:18]} {[%emt 00:00:01]} Bxf5 36. exf5
{[%clk 00:00:18]} Qe8 {[%clk 00:00:07]} {[%emt 00:00:06]} 37. Re6 {[%clk
00:00:18]} {[%emt 00:00:03]} Qa4 {[%clk 00:00:07]} {[%emt 00:00:05]} 38. Qxe5
{[%clk 00:00:18]} {[%emt 00:00:02]} Nc7 {[%clk 00:00:07]} 39. Rc6 {[%clk
00:00:18]} {[%emt 00:00:02]} Rg7 {[%clk 00:00:06]} {[%emt 00:00:05]} 40. Qxg7
{[%clk 00:00:17]} {[%emt 00:00:05]} 1-0